bitfinex-derivatives/quotes_BTCF0:USTF0_20241117
["timestamp","ask_amount","ask_price","bid_price","bid_amount"]
[1731881822989,0.055839,89538.0,89531.0,0.055843]
[1731881823200,0.055839,89538.0,89532.0,0.055842]
[1731881823500,0.055839,89538.0,89523.0,0.03643568]
[1731881823501,0.3608,89538.0,89523.0,0.03643568]
[1731881823685,0.3608,89538.0,89524.0,0.01047471]
[1731881823998,0.055844,89530.0,89525.0,0.01047471]
[1731881824201,0.3638,89538.0,89526.0,0.01047471]
[1731881824387,0.3638,89538.0,89523.0,0.03643568]
[1731881824388,0.055845,89528.0,89527.0,0.01047471]
[1731881824590,0.055848,89524.0,89523.0,0.00013568]
[1731881826107,0.055848,89524.0,89523.0,0.02461232]
[1731881826402,0.055848,89524.0,89523.0,0.01413568]
[1731881826586,0.055848,89524.0,89523.0,0.02461262]
[1731881826892,0.055848,89524.0,89523.0,0.01413568]
[1731881827091,0.220128,89524.0,89523.0,0.01413568]
[1731881827293,0.220128,89524.0,89523.0,0.02461278]
[1731881827496,0.220128,89524.0,89523.0,0.01413568]
[1731881827994,0.220128,89524.0,89523.0,0.02461294]
[1731881828195,0.220128,89524.0,89523.0,0.01413568]
[1731881829818,0.055862,89501.0,89500.0,0.1]
[1731881830023,0.055862,89501.0,89500.0,0.11047846]
[1731881831107,0.09428325,89501.0,89500.0,0.1]
[1731881831326,0.09428325,89501.0,89499.0,8.657e-05]
[1731881831327,0.18898325,89501.0,89499.0,5.7e-07]
[1731881831524,0.18898325,89501.0,89472.0,0.08958]
[1731881831525,0.055873,89483.0,89481.0,0.19921035]
[1731881831730,0.52512,89482.0,89476.0,0.19921035]
[1731881832032,0.055881,89471.0,89469.0,0.19921035]
[1731881832219,0.52512,89482.0,89470.0,0.01048193]
[1731881832410,0.52512,89482.0,89471.0,0.01048203]
[1731881832411,0.05588,89473.0,89471.0,0.01048203]
[1731881832610,0.05588,89473.0,89472.0,0.01048203]
[1731881832825,0.05588,89473.0,89472.0,0.01061784]
[1731881833312,0.05588,89473.0,89472.0,0.00013581]
[1731881833919,0.05588,89473.0,89472.0,8.1e-07]
[1731881834119,0.08958,89473.0,89472.0,8.1e-07]
[1731881834526,0.055891,89455.0,89441.0,0.055899]
[1731881834743,0.65442416,89455.0,89439.0,0.0052]
[1731881835040,0.65442416,89455.0,89437.0,0.20088747]
[1731881835041,0.12930416,89446.0,89437.0,0.20088747]
[1731881835230,0.12930416,89446.0,89438.0,0.01048574]
[1731881835424,0.12930416,89446.0,89442.0,8.869e-05]
[1731881835629,0.12930416,89446.0,89426.0,0.11459131]
[1731881835630,0.3608,89443.0,89426.0,0.11459131]
[1731881835825,0.12930416,89427.0,89421.0,0.0006]
[1731881836126,0.055915,89416.0,89408.0,0.0052]
[1731881836329,0.055915,89416.0,89400.0,0.1052]
[1731881836330,0.055919,89411.0,89400.0,0.1052]
[1731881836520,0.3608,89402.0,89400.0,0.1]
[1731881836718,0.3608,89402.0,89401.0,9.864e-05]
[1731881837123,0.00011704,89410.0,89408.0,0.05592]
[1731881837327,0.3608,89416.0,89415.0,0.055916]
[1731881837810,0.3608,89416.0,89415.0,0.391436]
[1731881838613,0.3054,89416.0,89415.0,0.391436]
[1731881838998,0.3074,89416.0,89415.0,0.393436]
[1731881839508,0.3074,89416.0,89415.0,0.33752]
[1731881839811,0.3074,89416.0,89415.0,0.002]
[1731881840402,0.0633,89426.0,89415.0,0.63752]
[1731881840403,0.0052,89426.0,89415.0,0.63752]
[1731881840617,0.3608,89439.0,89415.0,0.63752]
[1731881840618,0.366,89431.0,89430.0,0.055906]
[1731881840808,0.0052,89441.0,89440.0,0.0559]
[1731881841119,0.3608,89448.0,89430.0,0.6608]
[1731881841301,0.0052,89446.0,89431.0,0.01048491]
[1731881841501,0.0052,89446.0,89430.0,0.6608]
[1731881841502,0.0052,89446.0,89439.0,0.0559]
[1731881841701,0.3608,89448.0,89441.0,0.055899]
[1731881842209,0.3778,89448.0,89441.0,0.055899]
[1731881843113,0.433695,89448.0,89441.0,0.055899]
[1731881843915,0.433695,89448.0,89431.0,0.0357]
[1731881843916,0.3668,89448.0,89431.0,0.0357]
[1731881844208,0.055901,89439.0,89431.0,0.0357]
[1731881845003,0.055903,89435.0,89431.0,0.0417]
[1731881845201,0.3608,89440.0,89431.0,0.0417]
[1731881845409,0.0052,89445.0,89432.0,0.09668961]
[1731881845613,0.0052,89445.0,89442.0,0.055899]
[1731881845815,0.3608,89443.0,89442.0,0.055899]
[1731881846013,0.3608,89443.0,89431.0,0.0417]
[1731881846014,0.3608,89443.0,89435.0,0.055903]
[1731881846526,0.3608,89443.0,89437.0,0.055902]
[1731881846900,0.3608,89443.0,89431.0,0.0417]
[1731881846901,0.3608,89443.0,89441.0,0.055899]
[1731881847800,0.3628,89443.0,89441.0,0.055899]
[1731881848208,0.3608,89443.0,89441.0,0.059899]
[1731881848415,0.418698,89443.0,89441.0,0.004]
[1731881849822,0.417698,89443.0,89441.0,0.004]
[1731881850611,0.3618,89443.0,89441.0,0.059899]
[1731881850811,0.001,89443.0,89441.0,0.059899]
[1731881851717,0.001,89443.0,89442.0,0.00368671]
[1731881852014,0.001,89443.0,89442.0,0.33908671]
[1731881853012,0.3608,89447.0,89442.0,0.33908671]
[1731881853222,0.001,89443.0,89442.0,0.004]
[1731881853412,0.001,89443.0,89442.0,0.00769448]
[1731881853624,0.056898,89443.0,89442.0,0.004]
[1731881854106,0.056898,89443.0,89412.0,0.0016774]
[1731881854107,0.056898,89443.0,89423.0,0.05591]
[1731881854312,0.416706,89431.0,89423.0,0.05591]
[1731881854512,0.416706,89431.0,89427.0,0.055908]
[1731881854513,0.3608,89431.0,89427.0,0.055908]
[1731881854717,0.366,89438.0,89437.0,0.055902]
[1731881855022,0.3608,89446.0,89442.0,0.004]
[1731881855023,0.001,89443.0,89442.0,0.004]
[1731881855210,0.001,89443.0,89442.0,0.00768823]
[1731881855410,0.056898,89443.0,89442.0,0.00768823]
[1731881855610,0.056898,89443.0,89442.0,0.004]
[1731881856217,0.18659051,89443.0,89442.0,0.004]
[1731881856518,0.18659051,89443.0,89431.0,0.055906]
[1731881856519,0.055904,89435.0,89431.0,0.055906]
[1731881856722,0.12969251,89434.0,89425.0,0.01]
[1731881856910,0.3608,89426.0,89425.0,0.01]
[1731881857106,0.3608,89426.0,89422.0,0.091911]
[1731881857424,0.055911,89423.0,89422.0,0.036]
[1731881857713,0.055911,89423.0,89422.0,0.0501862]
[1731881858313,0.055911,89423.0,89422.0,0.04648721]
[1731881858519,0.055911,89423.0,89422.0,0.01418959]
[1731881859305,0.055911,89423.0,89422.0,0.02118959]
[1731881859727,0.055911,89423.0,89422.0,0.01418959]
[1731881859915,0.057911,89423.0,89422.0,0.02118959]
[1731881860524,0.576791,89423.0,89422.0,0.02118959]
[1731881861120,0.576791,89423.0,89410.0,0.0052]
[1731881861121,0.055917,89413.0,89410.0,0.0052]
[1731881861340,0.055917,89413.0,89403.0,0.055923]
[1731881861341,0.54640951,89413.0,89403.0,0.055923]
[1731881862419,0.54640951,89413.0,89401.0,9.864e-05]
[1731881862619,0.54640951,89413.0,89401.0,0.05602264]
[1731881862821,0.416717,89413.0,89401.0,0.05602264]
[1731881863122,0.54740951,89413.0,89412.0,0.0076774]
[1731881864128,0.54740951,89413.0,89401.0,9.864e-05]
[1731881864129,0.055924,89402.0,89401.0,9.864e-05]
[1731881864314,0.416724,89402.0,89401.0,9.864e-05]
[1731881864920,0.35378421,89402.0,89401.0,9.864e-05]
[1731881865116,0.40970821,89402.0,89401.0,9.864e-05]
[1731881865828,0.0052,89412.0,89411.0,0.055918]
[1731881866022,0.3608,89421.0,89411.0,0.391438]
[1731881866221,0.3608,89421.0,89412.0,0.0361]
[1731881866416,0.3608,89421.0,89413.0,0.26716131]
[1731881866728,0.3608,89421.0,89420.0,0.055913]
[1731881867120,0.0052,89427.0,89414.0,0.37385488]
[1731881867121,0.0052,89427.0,89426.0,0.055909]
[1731881867315,0.00167799,89431.0,89428.0,0.055907]
[1731881867520,0.015,89421.0,89420.0,0.055913]
[1731881867725,0.00687799,89431.0,89430.0,0.055906]
[1731881867921,0.00167799,89431.0,89430.0,0.391346]
[1731881868117,0.00167799,89431.0,89430.0,0.48959849]
[1731881868328,0.0052,89441.0,89440.0,0.0559]
[1731881868626,0.0052,89451.0,89438.0,0.26709556]
[1731881868826,0.0559,89441.0,89439.0,0.055901]
[1731881869626,0.12969251,89443.0,89426.0,0.33201725]
[1731881869627,0.12969251,89443.0,89441.0,0.055899]
[1731881871219,0.12969251,89443.0,89441.0,0.065899]
[1731881871935,0.36196,89445.0,89443.0,0.055898]
[1731881872231,0.13489251,89452.0,89447.0,0.055896]
[1731881872527,0.12969251,89452.0,89448.0,0.01048513]
[1731881872728,0.12969251,89452.0,89449.0,0.01048513]
[1731881872729,0.055893,89451.0,89449.0,0.01048513]
[1731881872932,0.055893,89451.0,89450.0,0.01048513]
[1731881873230,0.055893,89451.0,89450.0,0.01425265]
[1731881873434,0.055893,89451.0,89450.0,0.01048513]
[1731881873733,0.055893,89451.0,89443.0,0.007]
[1731881873927,0.055903,89435.0,89434.0,0.0052]
[1731881874132,0.055906,89430.0,89428.0,0.26709556]
[1731881874434,0.055906,89430.0,89429.0,0.07016095]
[1731881875035,0.055906,89430.0,89429.0,0.01425395]
[1731881875336,0.3608,89435.0,89429.0,0.01425395]
[1731881875536,0.3608,89435.0,89430.0,0.02037558]
[1731881875833,0.055906,89432.0,89431.0,0.02037558]
[1731881876054,0.3608,89435.0,89431.0,0.02037558]
[1731881876222,0.3608,89435.0,89417.0,0.33201725]
[1731881876223,0.3608,89435.0,89432.0,0.02037558]
[1731881876423,0.3608,89435.0,89433.0,0.01425395]
[1731881876638,0.3608,89435.0,89434.0,0.01425395]
[1731881877122,0.3618,89435.0,89434.0,0.01425395]
[1731881878827,0.3618,89435.0,89434.0,0.02925395]
[1731881879032,0.001,89435.0,89434.0,0.02923812]
[1731881880533,0.001,89435.0,89434.0,0.02548602]
[1731881880727,0.001,89435.0,89434.0,0.12123794]
[1731881881235,0.001,89435.0,89434.0,0.45325519]
[1731881881429,0.001,89435.0,89434.0,0.02548602]
[1731881881624,0.001,89435.0,89434.0,0.2926993]
[1731881881829,0.001,89435.0,89434.0,0.02548602]
[1731881882032,0.001,89435.0,89434.0,0.29269911]
[1731881882537,0.001,89435.0,89434.0,0.02548602]
[1731881882733,0.53002,89435.0,89424.0,0.26722504]
[1731881882933,0.055914,89418.0,89417.0,0.26722504]
[1731881883131,0.055915,89416.0,89414.0,0.26722504]
[1731881883328,0.055916,89414.0,89413.0,0.0039]
[1731881884336,0.3608,89415.0,89413.0,0.0039]
[1731881884837,0.416716,89415.0,89413.0,0.0039]
[1731881885138,0.3608,89423.0,89413.0,0.27119001]
[1731881885321,0.05591,89425.0,89419.0,0.055913]
[1731881885524,0.3608,89427.0,89425.0,0.055909]
[1731881885932,0.29787804,89427.0,89425.0,0.055909]
[1731881886128,0.0052,89434.0,89426.0,0.4365459]
[1731881886432,0.3608,89449.0,89439.0,0.055901]
[1731881886433,0.0052,89440.0,89439.0,0.055901]
[1731881886737,0.0052,89454.0,89439.0,0.00012734]
[1731881886940,0.05589,89456.0,89442.0,0.2672403]
[1731881887142,0.05589,89456.0,89451.0,0.055893]
[1731881887350,0.3608,89457.0,89446.0,0.2672403]
[1731881887532,0.00167738,89460.0,89457.0,0.055889]
[1731881887946,0.00167738,89460.0,89457.0,0.391249]
[1731881888128,0.00167738,89460.0,89458.0,0.34257751]
[1731881888333,0.0052,89474.0,89458.0,0.34257751]
[1731881888334,0.0052,89474.0,89458.0,0.75734093]
[1731881889050,0.01911505,89459.0,89458.0,0.42274633]
[1731881889341,0.01911505,89459.0,89458.0,0.08106558]
[1731881889556,0.00211505,89459.0,89458.0,0.4155767]
[1731881889738,0.0052,89474.0,89473.0,0.055879]
[1731881889933,0.0052,89474.0,89459.0,0.055888]
[1731881889934,0.3608,89478.0,89477.0,0.055877]
[1731881890443,0.00135,89480.0,89470.0,0.62758583]
[1731881890444,0.00135,89480.0,89479.0,0.055876]
[1731881890739,0.00135,89480.0,89479.0,0.0560142]
[1731881891144,0.00135,89480.0,89479.0,0.3912942]
[1731881891446,0.00135,89480.0,89479.0,0.4589301]
[1731881892143,0.0052,89494.0,89479.0,0.7589301]
[1731881892345,0.0052,89500.0,89492.0,0.055867]
[1731881892638,0.3608,89499.0,89492.0,0.055867]
[1731881892840,0.12969251,89504.0,89492.0,0.055867]
[1731881893062,0.3608,89501.0,89492.0,0.055867]
[1731881893942,0.055864,89499.0,89492.0,0.055867]
[1731881894145,0.3608,89501.0,89499.0,0.055863]
[1731881894851,0.3608,89501.0,89500.0,0.05483686]
[1731881895468,0.3618,89501.0,89500.0,0.05483686]
[1731881896057,0.3608,89501.0,89500.0,0.05483686]
[1731881896245,0.3628,89501.0,89500.0,0.05783686]
[1731881896851,0.3628,89501.0,89500.0,0.003]
[1731881898874,0.3628,89501.0,89479.0,0.0001382]
[1731881898875,0.055871,89487.0,89479.0,0.0001382]
[1731881899087,0.3608,89487.0,89479.0,0.0001382]
[1731881899258,0.0052,89499.0,89479.0,0.0001382]
[1731881899259,0.0052,89499.0,89487.0,0.055871]
[1731881899457,0.3628,89501.0,89480.0,0.06107956]
[1731881899690,0.3628,89501.0,89469.0,0.09350009]
[1731881899691,0.49049251,89481.0,89470.0,0.26632055]
[1731881899868,0.49049251,89481.0,89432.0,0.9625102]
[1731881899869,0.49049251,89471.0,89450.0,0.0052]
[1731881900070,0.49049251,89471.0,89438.0,0.00446]
[1731881900071,0.3608,89460.0,89444.0,0.0223521]
[1731881900268,0.15076,89467.0,89450.0,0.07669242]
[1731881900471,0.15076,89467.0,89449.0,0.056454]
[1731881900681,0.3608,89462.0,89450.0,8.527e-05]
[1731881900872,0.3608,89462.0,89450.0,0.08083846]
[1731881901068,0.3608,89462.0,89451.0,0.055893]
[1731881901269,0.3046,89462.0,89461.0,0.055887]
[1731881901467,0.0052,89476.0,89456.0,0.3608]
[1731881901672,0.0052,89482.0,89464.0,0.3608]
[1731881901869,0.3608,89488.0,89474.0,0.055879]
[1731881901870,0.366,89488.0,89474.0,0.055879]
[1731881902073,0.3608,89488.0,89474.0,0.055879]
[1731881902277,0.3608,89488.0,89478.0,0.055876]
[1731881902478,0.3608,89488.0,89480.0,0.055875]
[1731881903175,0.3608,89488.0,89482.0,0.055874]
[1731881903373,0.13136969,89491.0,89483.0,0.00011067]
[1731881903374,0.00167718,89491.0,89483.0,0.00011067]
[1731881903556,0.3608,89497.0,89490.0,0.055869]
[1731881904880,0.12969251,89491.0,89485.0,0.055872]
[1731881905082,0.12969251,89491.0,89483.0,0.00011067]
[1731881905271,0.3608,89486.0,89484.0,0.06107956]
[1731881905478,0.3608,89486.0,89483.0,0.00011067]
[1731881905981,0.12969251,89491.0,89483.0,0.00011067]
[1731881906180,0.3608,89484.0,89483.0,0.00011067]
[1731881907364,0.3608,89486.0,89483.0,0.05598367]
[1731881907778,0.3628,89486.0,89483.0,0.05598367]
[1731881907985,0.3628,89486.0,89483.0,0.00011067]
[1731881908272,0.12969251,89491.0,89483.0,0.05598367]
[1731881908273,0.002,89484.0,89483.0,0.05598367]
[1731881908785,0.003,89486.0,89484.0,0.055872]
[1731881910267,0.3608,89489.0,89483.0,0.00011067]
[1731881910474,0.3608,89489.0,89486.0,0.055871]
[1731881910674,0.3608,89489.0,89487.0,0.05587]
[1731881911278,0.3608,89497.0,89483.0,0.00011067]
[1731881911279,0.3608,89497.0,89495.0,0.055865]
[1731881911487,0.12978981,89502.0,89488.0,0.06232827]
[1731881911488,0.27393251,89496.0,89488.0,0.06232827]
[1731881911694,0.27393251,89496.0,89483.0,0.00011067]
[1731881911695,0.3638,89489.0,89483.0,0.00011067]
[1731881911976,0.12969251,89484.0,89483.0,0.00011067]
[1731881913273,0.0375,89488.0,89483.0,0.00011067]
[1731881914361,0.0375,89488.0,89458.0,0.0052]
[1731881914362,0.055882,89469.0,89458.0,0.0052]
[1731881914564,0.3608,89463.0,89454.0,0.055891]
[1731881914758,0.055883,89468.0,89459.0,0.07169536]
[1731881915252,0.055883,89468.0,89455.0,0.05589]
[1731881915253,0.055883,89468.0,89460.0,0.07762947]
[1731881915446,0.12969251,89471.0,89461.0,9.252e-05]
[1731881915765,0.0052,89481.0,89480.0,0.055875]
[1731881915960,0.003,89488.0,89480.0,0.055875]
[1731881916348,0.49049251,89491.0,89480.0,0.055875]
[1731881916546,0.49049251,89491.0,89476.0,0.33348229]
[1731881916754,0.3660973,89502.0,89486.0,0.055871]
[1731881916755,0.0052,89496.0,89486.0,0.055871]
[1731881916954,0.055864,89497.0,89486.0,0.055871]
[1731881917156,0.003,89488.0,89486.0,0.055871]
[1731881917550,0.055864,89497.0,89486.0,0.055871]
[1731881917853,0.003,89491.0,89486.0,0.055871]
[1731881918255,0.12969251,89501.0,89487.0,0.11788709]
[1731881918256,0.003,89488.0,89487.0,0.11788709]
[1731881918450,0.003,89488.0,89487.0,0.78840759]
[1731881918664,0.3608,89500.0,89487.0,0.67227821]
[1731881918959,0.3608,89500.0,89497.0,0.055864]
[1731881920262,9.73e-05,89502.0,89498.0,0.05591467]
[1731881920463,0.001,89500.0,89499.0,0.055863]
[1731881920862,9.73e-05,89502.0,89501.0,0.055862]
[1731881921673,0.055862,89501.0,89499.0,0.33410444]
[1731881921968,0.055863,89499.0,89498.0,0.00014149]
[1731881923758,0.055863,89499.0,89498.0,0.00414149]
[1731881925363,0.416663,89499.0,89498.0,0.00414149]
[1731881925554,0.055869,89490.0,89478.0,0.33415921]
[1731881925759,0.055876,89479.0,89477.0,0.33415921]
[1731881925972,0.35379294,89480.0,89477.0,0.33415921]
[1731881926273,0.055876,89479.0,89478.0,0.67040204]
[1731881926566,0.055876,89479.0,89478.0,0.00011532]
[1731881926967,0.057876,89479.0,89478.0,0.00011532]
[1731881927563,0.055876,89479.0,89478.0,0.00011532]
[1731881927872,0.416669,89490.0,89478.0,0.74342435]
[1731881928063,0.416669,89490.0,89486.0,0.39010963]
[1731881928569,0.416669,89490.0,89486.0,0.33423863]
[1731881928570,0.3608,89490.0,89486.0,0.33423863]
[1731881928776,0.416669,89490.0,89487.0,0.06232827]
[1731881929272,0.05587,89489.0,89487.0,0.06232827]
[1731881930274,0.055874,89482.0,89481.0,0.33426372]
[1731881930476,0.055874,89482.0,89478.0,0.00011532]
[1731881930477,0.055874,89481.0,89478.0,0.33458015]
[1731881930773,0.3608,89482.0,89478.0,0.00011532]
[1731881931271,0.055876,89479.0,89478.0,0.00011532]
[1731881931461,0.055876,89479.0,89478.0,0.33731919]
[1731881932171,0.001,89481.0,89478.0,0.73825092]
[1731881932371,0.3608,89489.0,89480.0,0.40108635]
[1731881932563,0.3608,89489.0,89488.0,0.05587]
[1731881932881,0.3608,89489.0,89488.0,0.72817459]
[1731881933056,0.3608,89489.0,89488.0,0.79019068]
[1731881933876,0.3678,89489.0,89488.0,0.79019068]
[1731881934275,0.007,89489.0,89488.0,0.79019068]
[1731881934459,0.007,89489.0,89488.0,1.15099068]
[1731881934864,0.007,89489.0,89488.0,1.15036051]
[1731881935963,0.00039495,89489.0,89488.0,1.15036051]
[1731881936167,0.00039495,89489.0,89488.0,1.18797577]
[1731881936570,0.366,89505.0,89488.0,1.18797577]
[1731881936571,0.366,89505.0,89501.0,0.055862]
[1731881936770,0.3608,89505.0,89501.0,0.39229642]
[1731881937080,0.055853,89516.0,89501.0,0.39229642]
[1731881937380,0.00687635,89518.0,89501.0,0.39229642]
[1731881937381,0.055858,89507.0,89501.0,0.39229642]
[1731881937565,0.055859,89506.0,89501.0,0.39229642]
[1731881937872,0.055859,89506.0,89501.0,0.79362093]
[1731881938169,0.0210973,89502.0,89501.0,0.39229642]
[1731881938974,0.0769583,89502.0,89501.0,0.33643442]
[1731881939465,0.0210973,89502.0,89501.0,0.33643442]
[1731881939866,0.0210973,89502.0,89501.0,0.446197]
[1731881941067,0.0210973,89502.0,89501.0,0.84752151]
[1731881941373,0.0210973,89502.0,89501.0,0.484297]
[1731881943665,0.0020973,89502.0,89501.0,0.494297]
[1731881943867,0.0020973,89502.0,89501.0,0.89521942]
[1731881944383,0.0020973,89502.0,89501.0,0.494297]
[1731881944570,9.73e-05,89502.0,89501.0,0.484297]
[1731881944877,0.055858,89509.0,89504.0,0.05586]
[1731881945077,0.055858,89509.0,89504.0,0.38996444]
[1731881945277,0.055858,89509.0,89506.0,0.33410444]
[1731881945613,0.49049251,89517.0,89505.0,0.33410444]
[1731881945875,0.3608,89517.0,89507.0,0.38426019]
[1731881946080,0.2979365,89517.0,89515.0,0.055853]
[1731881946271,0.00167635,89518.0,89516.0,0.055852]
[1731881946467,0.3608,89528.0,89512.0,0.33410444]
[1731881946668,0.3608,89528.0,89525.0,0.055847]
[1731881946873,0.3608,89528.0,89526.0,0.055846]
[1731881947074,0.3608,89528.0,89526.0,0.05961812]
[1731881947470,0.00012743,89532.0,89531.0,0.055843]
[1731881947667,0.00012743,89532.0,89531.0,0.05961512]
[1731881948071,0.36247571,89551.0,89531.0,0.42987659]
[1731881948274,0.36359572,89551.0,89544.0,0.055835]
[1731881948577,0.36359572,89551.0,89536.0,0.3608]
[1731881948578,0.36247571,89551.0,89549.0,0.055832]
[1731881949172,0.36247571,89551.0,89550.0,0.00374366]
[1731881949385,0.00167571,89551.0,89549.0,0.055832]
[1731881949681,0.00167571,89551.0,89550.0,0.02364428]
[1731881949885,0.54631651,89562.0,89555.0,0.055828]
[1731881950379,0.018,89551.0,89550.0,0.056831]
[1731881950577,0.018,89551.0,89550.0,0.06055082]
[1731881951279,0.3608,89563.0,89557.0,0.055826]
[1731881951481,0.018,89562.0,89557.0,0.055826]
[1731881951680,0.018,89562.0,89555.0,0.001]
[1731881951681,0.018,89562.0,89559.0,0.055826]
[1731881951872,0.018,89562.0,89555.0,0.001]
[1731881952080,0.018,89562.0,89556.0,0.00375763]
[1731881952301,0.018,89562.0,89555.0,0.001]
[1731881952578,0.018,89562.0,89560.0,0.055825]
[1731881953084,0.36088968,89565.0,89564.0,0.055823]
[1731881954173,0.36288968,89565.0,89564.0,0.065823]
[1731881954478,0.36288968,89565.0,89564.0,0.41538794]
[1731881954479,0.00208968,89565.0,89564.0,0.41538794]
[1731881954676,0.3608,89588.0,89578.0,0.055813]
[1731881954870,0.3608,89588.0,89564.0,0.36334296]
[1731881954871,0.3608,89588.0,89570.0,0.3608]
[1731881955096,0.3608,89588.0,89580.0,0.055813]
[1731881955680,0.3608,89588.0,89581.0,0.06628177]
[1731881955874,0.3608,89588.0,89570.0,0.3608]
[1731881956078,0.3608,89588.0,89582.0,0.055811]
[1731881956477,0.3728,89588.0,89580.0,0.001]
[1731881956681,0.012,89588.0,89580.0,0.056812]
[1731881956881,0.3608,89584.0,89583.0,0.055811]
[1731881957079,0.3608,89584.0,89570.0,0.001]
[1731881957080,0.055818,89571.0,89570.0,0.001]
[1731881957278,0.055818,89571.0,89553.0,0.3608]
[1731881957279,0.055827,89557.0,89553.0,0.3608]
[1731881957486,0.055827,89557.0,89554.0,0.00377294]
[1731881957788,0.18552051,89556.0,89555.0,0.00377279]
[1731881957969,0.18552051,89556.0,89546.0,0.00167508]
[1731881958173,0.3608,89562.0,89546.0,0.00167508]
[1731881958174,0.3608,89562.0,89555.0,0.02021522]
[1731881958482,0.055826,89559.0,89546.0,0.00167508]
[1731881958678,0.055826,89559.0,89552.0,0.05583]
[1731881958877,0.055826,89559.0,89546.0,0.00167508]
[1731881958878,0.055826,89559.0,89553.0,0.055829]
[1731881959082,0.055827,89558.0,89553.0,0.055829]
[1731881959283,0.12969251,89557.0,89546.0,0.00167508]
[1731881959571,0.12969251,89557.0,89549.0,0.055832]
[1731881959572,0.055829,89554.0,89549.0,0.055832]
[1731881959786,0.055829,89554.0,89550.0,0.05593514]
[1731881959977,0.12969251,89557.0,89551.0,0.05583]
[1731881960495,0.12969251,89557.0,89553.0,0.012]
[1731881960991,0.3608,89554.0,89553.0,0.012]
[1731881961371,0.3608,89554.0,89553.0,0.06783]
[1731881961980,0.3618,89554.0,89553.0,0.05583]
[1731881962601,0.3618,89554.0,89553.0,0.012]
[1731881962977,0.3618,89554.0,89552.0,0.05583]
[1731881962978,0.3608,89554.0,89552.0,0.05583]
[1731881963174,0.3608,89554.0,89553.0,0.012]
[1731881963175,0.3618,89554.0,89553.0,0.012]
[1731881963379,0.001,89554.0,89553.0,0.012]
[1731881963581,0.3608,89562.0,89550.0,0.00010414]
[1731881963781,0.3608,89562.0,89561.0,0.055825]
[1731881964375,0.3608,89562.0,89561.0,0.40725991]
[1731881964588,0.0052,89581.0,89580.0,0.055813]
[1731881964782,0.0052,89581.0,89561.0,0.77639491]
[1731881964783,0.055803,89595.0,89567.0,0.3608]
[1731881965091,0.3608,89596.0,89589.0,0.055807]
[1731881965788,0.3608,89596.0,89586.0,0.055809]
[1731881966489,0.3758,89596.0,89589.0,0.001]
[1731881966797,0.3758,89596.0,89590.0,0.055807]
[1731881967177,0.3758,89596.0,89595.0,0.055803]
[1731881967987,0.3608,89596.0,89595.0,0.055803]
[1731881968583,0.3608,89596.0,89595.0,0.057803]
[1731881969179,8.43e-05,89599.0,89595.0,0.057803]
[1731881970390,0.0558853,89599.0,89595.0,0.002]
[1731881970890,0.3608,89596.0,89595.0,0.002]
[1731881971091,8.43e-05,89599.0,89598.0,0.055802]
[1731881971286,0.0020843,89599.0,89598.0,0.055802]
[1731881971891,8.43e-05,89599.0,89598.0,0.055802]
[1731881972988,0.0020843,89599.0,89598.0,0.057802]
[1731881973188,0.0020843,89599.0,89598.0,0.06149177]
[1731881975099,0.0020843,89599.0,89598.0,0.057802]
[1731881976595,0.0020843,89599.0,89598.0,0.002]
[1731881978794,0.0020843,89599.0,89598.0,0.33684]
[1731881979297,0.0020843,89599.0,89598.0,0.002]
[1731881982199,0.3628843,89599.0,89598.0,0.002]
[1731881985204,0.4186853,89599.0,89598.0,0.002]
[1731881985699,0.4186853,89599.0,89598.0,0.057802]
[1731881985700,0.41992823,89599.0,89598.0,0.057802]
[1731881986504,0.41992823,89599.0,89598.0,0.002]
[1731881987500,0.75476823,89599.0,89598.0,0.002]
[1731881987699,0.75518541,89599.0,89598.0,0.002]
[1731881988309,0.42034541,89599.0,89598.0,0.002]
[1731881988510,0.42034541,89599.0,89591.0,0.00012943]
[1731881988511,0.99938441,89599.0,89591.0,0.00012943]
[1731881988802,0.99938441,89599.0,89569.0,0.0052]
[1731881988803,0.055812,89581.0,89569.0,0.0052]
[1731881989025,0.055812,89581.0,89560.0,0.03858037]
[1731881989026,0.50275703,89581.0,89560.0,0.03858037]
[1731881989204,0.48568,89581.0,89579.0,0.055813]
[1731881989396,0.48568,89581.0,89575.0,0.055816]
[1731881989596,0.48568,89581.0,89576.0,0.0001389]
[1731881989798,0.3608,89581.0,89580.0,0.055813]
[1731881990011,0.3608,89581.0,89580.0,0.05415289]
[1731881991914,0.3648,89581.0,89580.0,0.05515289]
[1731881992298,0.3668,89581.0,89580.0,0.05515289]
[1731881992913,0.422612,89581.0,89580.0,0.001]
[1731881995113,0.3608,89581.0,89578.0,0.19908574]
[1731881995312,0.055813,89580.0,89578.0,0.19908574]
[1731881996015,0.055813,89580.0,89576.0,0.0001389]
[1731881996016,0.055813,89580.0,89577.0,0.19908574]
[1731881996518,0.055813,89580.0,89578.0,0.20008574]
[1731881996711,0.055813,89580.0,89578.0,0.001]
[1731881997912,0.055813,89580.0,89577.0,0.055814]
[1731881998131,0.059813,89580.0,89577.0,0.055814]
[1731881998706,0.059813,89580.0,89576.0,0.19922464]
[1731881998707,0.055814,89578.0,89576.0,0.19922464]
[1731881999211,0.055814,89578.0,89576.0,0.0001389]
[1731882000118,0.45432,89577.0,89576.0,0.0001389]
[1731882001020,0.055814,89578.0,89576.0,0.0001389]
[1731882001216,0.059814,89578.0,89576.0,0.0001389]
[1731882001620,0.33492,89577.0,89576.0,0.0001389]
[1731882001919,0.33892,89577.0,89576.0,0.0001389]
[1731882002421,0.33492,89577.0,89576.0,0.0001389]
[1731882004120,0.45436,89577.0,89576.0,0.0001389]
[1731882004824,0.45836,89577.0,89576.0,0.0001389]
[1731882005025,0.055824,89562.0,89555.0,0.19908574]
[1731882005318,0.54585862,89562.0,89553.0,0.19908574]
[1731882005523,1.03873066,89562.0,89553.0,0.19908574]
[1731882005817,1.03873066,89562.0,89545.0,0.19908574]